Cogmind - Beta 9 @@@ ROGUE MODE // 2019.10.24 @ 23:31:17 Player: Trione Result: Destroyed by G-67 Veteran with Plasma Rifle Performance ------------- Evolutions (6) 3000 Regions Visited (21) 4200 Robots Destroyed (482) 2410 Value Destroyed (24210) 24210 Prototype IDs (64) 1280 Alien Tech Used (0) 0 Bonus (11194) 11194 TOTAL SCORE: 46294 Bonus ------- High Alert Combat Kills 4083 Follower Combat Kills 1772 Entered Garrisons 1600 Used RIF Installer 4000 Aligned with FarCom 300 Friendly Fire -561 Cogmind --------- Core Integrity 0/1150 Matter 300/300 Energy 100/100 System Corruption 19% Temperature Cool (0) Location -4/Factory Parts ------- Power (1) Propulsion (2) Utility (14) Weapon (2) Inventory (4) XL Autogun Array Peak State ------------ Power Light Quantum Reactor Propulsion Centrium Wheel Centrium Wheel Utility Improved Coolant Injector Large Storage Unit Large Storage Unit Large Storage Unit High-capacity Storage Unit High-capacity Storage Unit Advanced Weight Redist. System Advanced Particle Charger Quantum Capacitor Microactuators Advanced Hacking Suite Relay Coupler [Swarmer] Relay Coupler [Sentry] Weapon Neutron Missile Launcher Force Lance Inventory Micro Fission Core Compact Wheel Centrium Wheel Medium Storage Unit Large Storage Unit High-capacity Battery Energy Well Medium Matter Pod Experimental Optical Array Long-range Sensor Array Advanced Transmission Jammer Improved Powered Armor Advanced Thermal Defense Suite Improved Remote Force Field Relay Coupler [NC] Relay Coupler [Sentry] High-powered Tractor Beam Tesla Rifle Gamma Rifle Plasma Rifle Phase Gun Long-range Proton Cannon Coil Gun XL Autogun Array Antimatter Cannon Tesla Bomb Launcher Tesla Bomb Launcher Improved Remote Datajack Ionic Axe Heavy Pick [Rating: 108] Favorites ----------- Power Micro Fission Core Engine Cooled Ion Engine Power Core Micro Fission Core Reactor Light Quantum Reactor Propulsion Centrium Wheel Treads Improved Medium Treads Leg Carbon-fiber Leg Wheel Centrium Wheel Hover Unit Cooled Airjet Utility Large Storage Unit Device Long-range Sensor Array Storage Large Storage Unit Processor Improved Signal Interpreter Hackware Advanced Hacking Suite Protection Improved Medium Armor Plating Weapon Remote Datajack Energy Gun Heavy EM Shotgun Energy Cannon Plasma Cannon Ballistic Gun Railgun Ballistic Cannon Magnetic Acceleration Cannon Launcher Heavy Rocket Launcher Special Weapon Remote Datajack Slashing Weapon Scythe Piercing Weapon Spear Build | -11 -10 -10 -10 -9 -8 -8 -8 -8 -7 -7 -7 -7 -6 -6 -6 -6 -5 -5 -5 -5 -4 ------- Run | Scr Mat Min Exi Min Mat Gar Mat Gar Fac Gar Fac Gar Fac Gar Fac Gar Fac Gar Fac Gar Fac Slots Evolved 12 | . . . . . 4 . . . 2 . . . 2 . . . 2 . . . 2 Power . | . . . . . . . . . . . . . . . . . . . . . . Propulsion . | . . . . . . . . . . . . . . . . . . . . . . Utility 12 | . . . . . 4 . . . 2 . . . 2 . . . 2 . . . 2 Weapon . | . . . . . . . . . . . . . . . . . . . . . . Parts Attached 946 | 7 8 4 . 2 33 8 9 22 59 32 67 33 31 22 119 57 56 69 107 54 147 Power 32 | 1 . . . . 4 . 1 . 1 1 2 1 2 1 6 2 . 2 . 1 7 Engine 12 | 1 . . . . 4 . 1 . 1 1 2 . 1 . . 1 . . . . . Core 17 | . . . . . . . . . . . . 1 1 1 6 1 . 1 . 1 5 Reactor 3 | . . . . . . . . . . . . . . . . . . 1 . . 2 Propulsion 125 | 2 3 . . . 6 2 . 6 7 2 3 1 1 . 5 10 12 9 23 8 25 Treads 37 | . . . . . . . . . 2 . . . . . . 5 6 6 7 3 8 Leg 2 | . . . . . . . . 2 . . . . . . . . . . . . . Wheel 83 | 2 3 . . . 5 2 . 4 5 2 2 1 1 . 4 5 6 3 16 5 17 Hover 3 | . . . . . 1 . . . . . 1 . . . 1 . . . . . . Flight . | . . . . . . . . . . . . . . . . . . . . . . Utility 366 | 2 2 . . . 7 2 . 4 19 10 22 12 12 8 57 19 22 41 46 19 62 Device 134 | . . . . . 3 . . . 6 1 10 1 4 2 28 7 12 6 20 3 31 Storage 62 | 2 2 . . . 4 1 . 2 . 5 . 3 . 1 2 4 3 18 5 6 4 Processor 4 | . . . . . . . . . 1 . . . . . . . . . 1 . 2 Hackware 42 | . . . . . . . . 1 3 2 1 1 3 2 4 2 2 2 8 4 7 Protection 124 | . . . . . . 1 . 1 9 2 11 7 5 3 23 6 5 15 12 6 18 Artifact . | . . . . . . . . . . . . . . . . . . . . . . Weapon 423 | 2 3 4 . 2 16 4 8 12 32 19 40 19 16 13 51 26 22 17 38 26 53 Energy Gun 36 | 1 . 1 . . 5 . 1 1 2 7 1 . . . 1 . 1 4 1 5 5 Energy Cannon 121 | . . . . . 4 2 5 5 13 2 15 2 5 2 26 11 6 2 7 4 10 Ballistic Gun 42 | 1 2 1 . 1 4 . . . . . . . . . 4 3 . 9 6 3 8 Ballistic Cannon 47 | . . . . . . . . 2 3 2 3 7 2 3 4 5 5 . 8 2 1 Launcher 62 | . 1 2 . 1 2 2 2 1 6 6 3 5 2 5 2 3 . 2 . 6 11 Special Weapon 47 | . . . . . . . . 1 2 2 2 2 3 2 9 3 4 . 11 2 4 Impact Weapon . | . . . . . . . . . . . . . . . . . . . . . . Slashing Weapon 53 | . . . . . 1 . . 2 6 . 14 1 4 1 5 1 3 . 5 4 6 Piercing Weapon 15 | . . . . . . . . . . . 2 2 . . . . 3 . . . 8 Special Melee Weapon . | . . . . . . . . . . . . . . . . . . . . . . Unidentified Prototypes 25 | . . . . . 8 . 1 . 2 . 1 . 1 . 5 . 1 . 3 . 3 Parts Lost 112 | . 1 1 . . 4 2 . 2 7 2 2 6 . 1 1 11 1 13 6 3 49 Power 14 | . . . . . 2 . . . 1 1 1 1 . . . 1 . 2 . . 5 Propulsion 21 | . 1 . . . 2 2 . 2 3 . . 1 . . . . . 2 . . 8 Utility 53 | . . . . . . . . . 1 . 1 3 . . 1 6 1 7 6 2 25 Weapon 24 | . . 1 . . . . . . 2 1 . 1 . 1 . 4 . 2 . 1 11 Highest Loss Streak 12 | . 1 1 . . 2 2 . 1 4 1 1 2 . 1 1 5 1 10 2 2 12 Average Slot Usage (%) 95 | . 99 99 100 100 94 100 100 98 98 95 93 89 92 92 93 97 99 98 94 94 90 Engine 3 | . 14 14 14 14 8 9 9 9 7 4 6 4 1 . . 4 . . . . . Core 3 | . . . . . . . . . . . . 2 4 6 5 1 5 4 5 5 4 Treads 1 | . . . . . . . . . . . . . . . . 8 . 8 . 4 1 Wheel 9 | . 27 28 28 28 17 18 18 13 14 15 9 7 5 6 6 4 10 2 9 1 7 Device 4 | . . . . . 16 9 . . 1 . 5 . 5 5 7 4 9 1 3 3 7 Storage 30 | . 28 28 28 28 32 43 45 45 38 31 30 24 26 21 26 30 28 34 34 27 29 Processor 2 | . . . . . . . . . 4 7 7 7 6 6 4 . . . . . . Hackware 12 | . . . . . . . . . 2 10 7 7 11 9 12 11 13 15 18 23 23 Protection 11 | . . . . . . 1 9 8 12 8 8 19 15 22 12 16 16 16 7 13 5 Energy Cannon 3 | . . . . . 7 4 14 10 6 . 8 2 4 2 5 1 2 . 1 1 1 Ballistic Gun 3 | . 26 22 28 28 6 9 1 . . . . . . . 2 3 . 8 3 2 1 Ballistic Cannon 1 | . . . . . . . . 2 . 1 1 8 3 4 . 4 2 . 1 . . Special Weapon 1 | . . . . . . . . 1 . 4 . . 2 2 1 2 1 . 1 2 1 Slashing Weapon 1 | . . . . . 3 . . 1 5 . 3 1 2 1 1 . . . 1 1 1 Naked Turns 47 | . . . . . . . . . . . . . . . . . . . . . 47 Heaviest Build 184 | 17 42 42 41 41 80 109 111 116 136 119 105 92 106 106 130 134 147 184 176 162 178 Greatest Support 79 | 26 32 32 32 32 32 32 26 26 56 24 28 28 28 28 32 60 60 53 70 70 79 Greatest Overweight (x) 10 | 1 2 1 1 1 4 4 4 10 9 4 8 3 3 3 7 3 4 6 5 5 9 Average Overweight (x) 3 | . 1 1 1 1 1 2 3 5 4 3 3 2 3 2 3 1 3 2 4 1 3 Largest Inventory Capacity 60 | 8 16 16 16 16 28 32 32 34 34 34 28 28 28 28 30 40 42 60 44 50 48 Average Capacity 31 | 6 15 16 16 16 25 31 32 32 34 29 28 23 28 23 28 30 35 39 42 33 41 Most Carried 57 | 6 14 15 16 16 28 32 32 34 34 34 28 28 28 28 29 40 36 57 44 50 44 Average Carried 30 | 4 9 14 14 16 24 30 31 31 32 28 27 22 27 22 27 28 34 38 41 32 38 Final Capacity 44 | . . . . . . . . . . . . . . . . 40 28 . . 28 44 Final Carried 44 | . . . . . . . . . . . . . . . . 40 28 . . 26 44 Class Distribution -------------------- 30% | Hauler-Mutant 22% | Bothacker-Mutant 22% | Botlord-Mutant 16% | Scavenger-Mutant 5% | Mutant Dominant Class ---------------- Mutant | -10/Materials Mutant | -10/Mines Mutant | -10/Exiles Mutant | -9/Mines Hauler-Mutant | -8/Materials Hauler-Mutant | -8/Garrison Hauler-Mutant | -8/Materials Hauler-Mutant | -8/Garrison Hauler-Mutant | -7/Factory Hauler-Mutant | -7/Garrison Scavenger-Mutant | -7/Factory Scavenger-Mutant | -7/Garrison Hauler-Mutant | -6/Factory Hauler-Mutant | -6/Garrison Hauler-Mutant | -6/Factory Bothacker-Mutant | -6/Garrison Bothacker-Mutant | -5/Factory Scavenger-Mutant | -5/Garrison Botlord-Mutant | -5/Factory Bothacker-Mutant | -5/Garrison Botlord-Mutant | -4/Factory Resources | -11 -10 -10 -10 -9 -8 -8 -8 -8 -7 -7 -7 -7 -6 -6 -6 -6 -5 -5 -5 -5 -4 ----------- Run | Scr Mat Min Exi Min Mat Gar Mat Gar Fac Gar Fac Gar Fac Gar Fac Gar Fac Gar Fac Gar Fac Matter Collected 18103 | 252 335 176 . 42 461 93 316 347 827 550 881 1121 364 577 1672 1186 1005 1316 3172 1033 2377 Remotely . | . . . . . . . . . . . . . . . . . . . . . . Salvage Created 25912 | 58 676 239 . 32 1013 172 528 822 1199 1266 1168 1105 356 642 2353 1447 508 2615 3289 1439 4985 Parts 1099 | 2 39 16 . 7 49 12 30 23 67 47 56 43 17 27 98 50 20 87 141 56 212 Haulers Intercepted 18 | . 2 . . . 5 . 2 . 1 . 3 . . . 1 . . . 2 . 2 Recyclers Shooed 21 | . 2 1 . . 1 . 1 . . . 1 . . . 4 . . . 6 . 5 Parts Field Recycled . | . . . . . . . . . . . . . . . . . . . . . . Retrieved Matter . | . . . . . . . . . . . . . . . . . . . . . . Parts Self-Destructed . | . . . . . . . . . . . . . . . . . . . . . . Prevented . | . . . . . . . . . . . . . . . . . . . . . . Kills | -11 -10 -10 -10 -9 -8 -8 -8 -8 -7 -7 -7 -7 -6 -6 -6 -6 -5 -5 -5 -5 -4 ------- Run | Scr Mat Min Exi Min Mat Gar Mat Gar Fac Gar Fac Gar Fac Gar Fac Gar Fac Gar Fac Gar Fac Combat Hostiles Destroyed 341 | . 10 4 . 1 9 8 8 10 21 18 17 34 5 15 22 23 8 23 30 28 47 Melee 17 | . . . . . . . . . 1 . 3 5 . . . . 1 . . . 7 Guns 48 | . 9 . . . 1 1 . 2 . 1 . . . . 3 . . 8 16 3 4 Cannons 103 | . . . . . 6 1 3 4 9 2 11 5 2 5 10 11 5 . 13 5 11 AOE 134 | . 1 4 . 1 1 6 5 3 8 13 3 24 3 10 7 12 . 6 . 10 17 Classes Destroyed 20 | 1 5 2 . . 3 1 . 1 2 . . . . 1 . 1 . . . . 3 Worker 21 | . . 1 . . 1 . 1 . 3 . . . . . 2 . 1 . 4 . 8 Builder 23 | . 1 . . . . . 1 . . . 1 . . . 7 . . . 1 . 12 Tunneler 3 | . . 1 . 1 . . . . . . . . . . . . . . 1 . . Hauler 18 | . 2 . . . 5 . 2 . 1 . 3 . . . 1 . . . 2 . 2 Recycler 38 | 1 3 2 . . 2 . 3 . 3 . 2 . . . 6 . 1 . 7 . 8 Carrier 1 | . . . . . . . . . . . . . . . . . . . . . 1 Mechanic 1 | . . . . . . . . . . . . . . . . . . . . . 1 Operator 3 | . 1 . . . . . . . . . 1 . . . 1 . . . . . . Watcher 30 | . . . . . 3 1 . . 3 . 2 1 1 . 5 1 1 2 4 . 6 Swarmer 65 | . 4 3 . 1 . 3 3 . 4 6 2 11 . 6 . 5 1 2 . 13 1 Saboteur 2 | . . . . . . . . . . . . . . . . . . . . . 2 Grunt 155 | . 6 1 . . 4 4 3 7 7 9 6 22 3 7 9 17 . 12 9 11 18 Brawler 10 | . . . . . . . . 1 1 . . . . 1 . . 2 1 1 . 3 Duelist 11 | . . . . . . 1 . 1 . . . . . . 1 . 1 . 1 1 5 Protector 2 | . . . . . . . . . 1 . . . . . . . . . . . 1 Sentry 43 | . . . . . 5 . 2 . 4 3 6 2 1 . 5 . . 6 6 2 1 Specialist 1 | . . . . . . . . . . . . . . 1 . . . . . . . Hunter 15 | . . . . . 1 . . 1 1 . . . . . 2 . . 2 2 . 6 Programmer 37 | . . . . . . . . . 3 . 3 . 1 . 5 . 4 . 11 . 10 Behemoth 2 | . . . . . . . . . . . . . . . . 1 . . . 1 . Thug 1 | . . . . . . . . . . . . . . . . . . . 1 . . Best Kill Streak 21 | 1 4 5 . 1 4 3 7 3 5 3 4 8 3 4 6 7 1 9 7 5 21 Combat Bots Only 11 | . 3 3 . 1 3 3 5 3 5 3 3 8 3 4 3 7 1 9 5 5 11 Max Kills in Single Turn 9 | 1 2 2 . 1 2 2 3 1 2 3 2 3 2 4 3 2 1 3 2 4 9 Gunslinging . | . . . . . . . . . . . . . . . . . . . . . . Exploded 4 | . 1 2 . 1 1 2 2 1 2 3 1 3 2 4 1 2 . 2 . 4 4 Melee 1 | . . . . . . . . . 1 . 1 1 . . . . 1 . . . 1 Uniques/NPCs Destroyed . | . . . . . . . . . . . . . . . . . . . . . . Combat | -11 -10 -10 -10 -9 -8 -8 -8 -8 -7 -7 -7 -7 -6 -6 -6 -6 -5 -5 -5 -5 -4 -------- Run | Scr Mat Min Exi Min Mat Gar Mat Gar Fac Gar Fac Gar Fac Gar Fac Gar Fac Gar Fac Gar Fac Damage Taken 31267 | . 176 105 . . 540 150 114 603 1868 887 1333 1530 442 281 2090 1831 720 3048 3139 1765 10645 Core 3078 | . 7 6 . . 138 23 22 102 184 67 94 152 80 24 153 139 28 354 332 20 1153 Absorbed by Shields 1326 | . . . . . . . . . . . . 282 . 227 364 186 130 38 30 . 69 Reduced by Siege Mode 781 | . . . . . . . . . . . . . . . . . . . 130 71 580 Core Remaining (%) 58 | 100 . . . 94 . . . 48 . . . 29 . . . 53 . . . 26 . Volleys Fired 1583 | 4 48 20 . 2 64 29 18 62 96 68 70 72 32 48 145 112 69 133 192 113 186 Largest 2 | 2 2 2 . 2 2 2 2 2 2 2 2 2 2 2 2 2 2 2 2 2 2 Hottest 188 | 60 40 70 . 50 136 91 148 148 160 106 160 138 160 133 170 145 150 130 188 151 180 Shots Fired 2231 | 5 94 30 . 4 113 46 31 91 123 94 115 97 37 55 211 164 93 179 302 134 213 Gun 779 | 5 93 25 . 3 55 18 . 5 14 49 1 . . . 50 25 4 163 161 57 51 Cannon 1118 | . . . . . 56 16 26 78 89 27 104 55 15 35 144 109 77 2 121 41 123 Launcher 177 | . 1 5 . 1 2 12 5 3 12 10 5 25 8 16 10 13 . 13 . 21 15 Special 157 | . . . . . . . . 5 8 8 5 17 14 4 7 17 12 1 20 15 24 Kinetic 861 | 1 92 15 . 3 42 18 . 8 23 12 21 41 1 28 62 76 42 59 235 35 47 Thermal 508 | . . 10 . . 60 16 26 28 46 . 83 . 10 7 81 22 19 1 30 11 58 Explosive 111 | . 1 5 . 1 2 12 4 3 12 4 5 25 . 4 10 13 . . . . 10 Electromagnetic 594 | 4 1 . . . 9 . 1 47 34 70 1 14 12 12 51 36 20 118 17 73 74 Robot Hit Streak 24 | 4 8 13 . 1 9 8 12 12 11 16 8 18 8 6 15 20 11 19 24 16 11 Robot Miss Streak 7 | 1 3 2 . 1 3 3 2 5 4 6 6 2 3 2 3 7 3 2 3 2 5 Penetration Max 2 | . . . . . . . . . . . . . . . 2 . . 1 2 1 1 Secondary Targets 4 | . 1 . . . 1 . . . . . . . . . . . . 1 1 . . Max Gunslinging Chain 1 | . 1 . . . 1 . . . . . . . . . . . . 1 1 . . Shots Hit Robots 1378 | 4 49 15 . 1 74 18 16 47 90 65 74 67 22 19 119 96 57 110 199 68 168 Core Hits 842 | 2 29 15 . 2 28 18 16 27 49 52 36 58 13 29 77 61 17 65 89 29 130 Critical Hits 120 | . 3 . . . 3 . 2 1 5 . 1 2 1 1 13 3 1 5 63 13 3 Critical Kills 47 | . 2 . . . 2 . 1 . 1 . . 1 1 1 4 1 . 3 27 3 . Critical Parts Destroyed 65 | . 1 . . . 1 . 1 1 3 . 1 1 . . 8 2 1 2 33 7 3 Melee Attacks 276 | . . . . . 8 . . 9 27 . 55 27 8 1 25 2 21 . 24 6 63 Impact . | . . . . . . . . . . . . . . . . . . . . . . Slashing 198 | . . . . . 8 . . 9 27 . 42 4 8 1 25 2 9 . 24 6 33 Piercing 78 | . . . . . . . . . . . 13 23 . . . . 12 . . . 30 Sneak Attacks 27 | . . . . . . . . . 5 . 3 1 . . 2 . 4 . 3 . 9 Combat Hostiles 2 | . . . . . . . . . . . . 1 . . . . 1 . . . . Follow-up Attacks 7 | . . . . . . . . . . . . 2 . . . . . . . . 5 Damage Inflicted 55451 | 77 761 481 . 122 1346 952 1021 1382 3472 2516 2702 3963 808 1497 5488 3615 1846 4055 4886 2553 11908 Guns 9527 | 50 724 199 . 25 489 125 . 83 142 577 . . . . 236 245 9 2345 2735 657 886 Cannons 19777 | . . . . . 825 122 442 873 1712 527 1631 906 250 521 3042 1951 1304 31 1606 424 3610 Explosions 21380 | 27 37 277 . 97 32 705 579 426 1030 1412 520 2507 558 976 1929 1419 105 1679 . 1472 5593 Melee 4762 | . . . . . . . . . 588 . 551 550 . . 281 . 428 . 545 . 1819 Ramming 5 | . . 5 . . . . . . . . . . . . . . . . . . . Kinetic 10733 | . 724 84 . 25 298 125 . 47 467 197 348 523 . 465 544 958 864 600 3386 231 847 Thermal 11551 | 27 . 115 . . 843 122 442 339 896 659 1283 . 376 152 1986 444 296 233 542 166 2630 Explosive 13494 | . 37 277 . 97 32 705 503 233 1030 363 520 2507 . 296 1560 1419 . . . . 3915 Electromagnetic 14906 | 50 . . . . 173 . 76 763 491 1297 . 383 432 584 1117 794 258 3222 413 2156 2697 Impact . | . . . . . . . . . . . . . . . . . . . . . . Slashing 2757 | . . . . . . . . . 588 . 348 63 . . 281 . 208 . 545 . 724 Piercing 2005 | . . . . . . . . . . . 203 487 . . . . 220 . . . 1095 Highest Corruption 19 | . . . . . . . . . . . . . 2 1 1 . 5 3 7 1 19 Average Corruption 3 | . . . . . . . . . . . . . 1 1 1 . 3 1 3 1 10 Corruption Purged 34 | . . . . . . . . . . . . . 1 1 3 . 8 4 12 1 4 Effects 196 | . . . . . . . . . . . . . 1 3 2 . 15 9 66 . 100 Message Errors 46 | . . . . . . . . . . . . . 1 2 1 . 3 5 14 . 20 Matter Fused 30 | . . . . . . . . . . . . . . . . . . . 11 . 19 Heat Flow Errors 24 | . . . . . . . . . . . . . . . . . 5 . 8 . 11 Energy Discharges 22 | . . . . . . . . . . . . . . 1 1 . 4 1 8 . 7 Parts Rejected 1 | . . . . . . . . . . . . . . . . . . . . . 1 Data Loss (minor) 24 | . . . . . . . . . . . . . . . . . 2 3 11 . 8 Data Loss (major) 3 | . . . . . . . . . . . . . . . . . . . 1 . 2 Misfires 4 | . . . . . . . . . . . . . . . . . 1 . . . 3 Misdirections 8 | . . . . . . . . . . . . . . . . . . . . . 8 Targeting Errors 28 | . . . . . . . . . . . . . . . . . . . 11 . 17 Weapon Failures 6 | . . . . . . . . . . . . . . . . . . . 2 . 4 Overload Shots . | . . . . . . . . . . . . . . . . . . . . . . Overflow Damage 2468 | . . 16 . . . 86 52 . 93 37 208 193 51 25 388 25 214 . 177 11 892 Projectiles 636 | . . . . . . 20 1 . 39 20 53 35 . 17 209 . 21 . 44 4 173 Explosions 1216 | . . 16 . . . 66 51 . 3 17 10 153 51 8 179 25 50 . . 7 580 Melee 616 | . . . . . . . . . 51 . 145 5 . . . . 143 . 133 . 139 Knockbacks 40 | . . . . . . . . 1 2 4 1 5 . 3 1 2 9 . 8 2 2 Impact . | . . . . . . . . . . . . . . . . . . . . . . Kinetic 39 | . . . . . . . . 1 2 4 1 5 . 3 1 2 9 . 8 1 2 Secondary 1 | . . . . . . . . . . . . . . . . . . . . 1 . Self-Inflicted Damage 1171 | . . 15 . . . 40 . . 30 156 1 162 3 18 85 116 58 91 . . 396 Shots 30 | . . 1 . . . 1 . . 1 4 1 5 1 2 2 3 1 2 . . 6 Rammed 1 | . . 1 . . . . . . . . . . . . . . . . . . . Targets Rammed 1 | . . 1 . . . . . . . . . . . . . . . . . . . Kicked . | . . . . . . . . . . . . . . . . . . . . . . Crushed . | . . . . . . . . . . . . . . . . . . . . . . Highest Temperature 557 | . 2 27 . . 557 142 344 368 408 163 504 248 279 174 498 290 267 361 393 260 455 Average Temperature 95 | . 2 9 . . 137 50 110 118 88 44 105 64 73 43 123 105 71 102 93 81 100 Received Heat Transfer 5837 | . 69 36 . . 216 18 45 207 510 264 378 587 150 49 556 616 39 540 279 216 1062 Effects 34 | . . . . . 9 . 1 2 3 . 4 . . . 5 . . 1 3 1 5 Shutdowns 8 | . . . . . 1 . . . . . 1 . . . 3 . . . 1 . 2 Energy Bleed 8 | . . . . . 1 . 1 1 2 . 1 . . . . . . . . 1 1 Interference 6 | . . . . . 2 . . . 1 . . . . . . . . . 2 . 1 Matter Decay 1 | . . . . . . . . . . . 1 . . . . . . . . . . Short Circuit 3 | . . . . . . . . 1 . . 1 . . . . . . . . . 1 Damage (minor) 4 | . . . . . 1 . . . . . . . . . 2 . . 1 . . . Damage (major) 4 | . . . . . 4 . . . . . . . . . . . . . . . . Siege Activations 35 | . . . . . . . . . . . . . . . . . . . 8 14 13 Total Turns 863 | . . . . . . . . . . . . . . . . . . . 377 217 269 Longest Duration 138 | . . . . . . . . . . . . . . . . . . . 138 32 67 Robots Corrupted 59 | . . . . . 1 . . 3 2 6 . 3 . . 1 5 2 17 1 10 8 Combat Hostiles 35 | . . . . . 1 . . 1 2 2 . . . . 1 . 2 9 . 10 7 Parts Fried 113 | 1 . . . . 2 . . 3 7 4 . 5 2 2 7 3 . 21 5 26 25 Impact Corruptions . | . . . . . . . . . . . . . . . . . . . . . . Robots Melted 4 | . . . . . 1 . . . 1 . . . . . 1 . . . 1 . . Combat Hostiles 3 | . . . . . . . . . 1 . . . . . 1 . . . 1 . . Parts Melted 38 | . . 1 . . 5 . 2 1 3 . 5 . 1 . 5 . 1 . 5 . 9 Heat Transferred 16274 | 50 . 333 . . 1591 222 833 522 1685 475 2335 . 450 224 2535 759 350 225 685 200 2800 Parts Sabotaged . | . . . . . . . . . . . . . . . . . . . . . . Parts Stolen . | . . . . . . . . . . . . . . . . . . . . . . Parts Stripped . | . . . . . . . . . . . . . . . . . . . . . . Power Chain Reactions 22 | 1 . . . . . . . 3 . 8 . . 2 2 1 . 1 2 . 2 . Missiles Intercepted . | . . . . . . . . . . . . . . . . . . . . . . Alert | -11 -10 -10 -10 -9 -8 -8 -8 -8 -7 -7 -7 -7 -6 -6 -6 -6 -5 -5 -5 -5 -4 ------- Run | Scr Mat Min Exi Min Mat Gar Mat Gar Fac Gar Fac Gar Fac Gar Fac Gar Fac Gar Fac Gar Fac Peak Influence 1512 | 5 316 168 . 82 265 385 373 565 844 660 511 1330 728 654 474 1132 609 830 735 1351 1512 Average Influence 524 | 1 150 69 . 33 160 214 157 401 413 434 318 971 256 411 203 939 407 643 352 1084 825 Maximum Alert Level 4 | . 1 . . . 1 1 1 2 3 2 2 4 3 2 2 4 2 3 3 4 4 Low Security (%) 21 | . . . . . . . . . . . . . . . . . . . . . . Level 1 24 | . . . . . . . . . . . . . . . . . . . . . . Level 2 24 | . . . . . . . . . . . . . . . . . . . . . . Level 3 15 | . . . . . . . . . . . . . . . . . . . . . . Level 4 13 | . . . . . . . . . . . . . . . . . . . . . . Level 5 . | . . . . . . . . . . . . . . . . . . . . . . High Security . | . . . . . . . . . . . . . . . . . . . . . . Max Security . | . . . . . . . . . . . . . . . . . . . . . . Squads Dispatched 79 | . 2 . . . . . . . 9 . 7 . 1 . 12 . 7 . 19 . 22 Investigation 14 | . . . . . . . . . 2 . 3 . . . 2 . 2 . 3 . 2 Extermination 29 | . . . . . . . . . 5 . 3 . 1 . 5 . 2 . 8 . 5 Reinforcement 23 | . 2 . . . . . . . 1 . 1 . . . 5 . 2 . 7 . 5 Assault 10 | . . . . . . . . . 1 . . . . . . . 1 . 1 . 7 Garrison 3 | . . . . . . . . . . . . . . . . . . . . . 3 Intercept . | . . . . . . . . . . . . . . . . . . . . . . Construction Impeded 9 | . . . . . . . . . 1 . . . . . 1 . . . 3 . 4 Haulers Reinforced 5 | . . . . . . . . . . . . . . . 2 . . . 2 . 1 Alert ID Control Effect 33 | . . . . . . . . . . 2 1 . . 2 . 4 . . 17 4 3 Stealth | -11 -10 -10 -10 -9 -8 -8 -8 -8 -7 -7 -7 -7 -6 -6 -6 -6 -5 -5 -5 -5 -4 --------- Run | Scr Mat Min Exi Min Mat Gar Mat Gar Fac Gar Fac Gar Fac Gar Fac Gar Fac Gar Fac Gar Fac Distress Signals 14 | . 1 . . . 2 . . . 1 . 3 . . . . . . . 4 . 3 Communications Jammed 1 | . . . . . . . . . . . . . . . . . . . . . 1 Distress Signals 1 | . . . . . . . . . . . . . . . . . . . . . 1 Times Spotted 601 | . 20 8 . 1 17 9 9 11 35 28 37 39 11 25 41 42 20 29 76 41 102 Peak Tracking Total 11 | . 3 3 . 2 4 3 3 3 5 5 4 7 5 4 5 7 4 8 7 5 11 Tactical Retreats 64 | . 2 3 . . . 1 2 . 1 2 6 5 1 2 5 7 . 2 7 11 7 Traps | -11 -10 -10 -10 -9 -8 -8 -8 -8 -7 -7 -7 -7 -6 -6 -6 -6 -5 -5 -5 -5 -4 ------- Run | Scr Mat Min Exi Min Mat Gar Mat Gar Fac Gar Fac Gar Fac Gar Fac Gar Fac Gar Fac Gar Fac Traps Triggered 74 | . . . . . 1 2 . 4 2 5 . 7 . 7 1 13 2 8 3 16 3 Indirectly 5 | . . . . . . . . . . . . . . . . . . . . 5 . Trap Hack Attempts . | . . . . . . . . . . . . . . . . . . . . . . Triggered . | . . . . . . . . . . . . . . . . . . . . . . Disarmed . | . . . . . . . . . . . . . . . . . . . . . . Reprogrammed . | . . . . . . . . . . . . . . . . . . . . . . Reused . | . . . . . . . . . . . . . . . . . . . . . . Traps Extracted . | . . . . . . . . . . . . . . . . . . . . . . Installed . | . . . . . . . . . . . . . . . . . . . . . . Triggered 3 | . . . . . . . . 1 . . . . . . 1 . . . 1 . . Machines | -11 -10 -10 -10 -9 -8 -8 -8 -8 -7 -7 -7 -7 -6 -6 -6 -6 -5 -5 -5 -5 -4 ---------- Run | Scr Mat Min Exi Min Mat Gar Mat Gar Fac Gar Fac Gar Fac Gar Fac Gar Fac Gar Fac Gar Fac Machines Disabled 95 | . 5 . . . . 1 3 2 1 3 9 13 . 9 5 8 2 5 6 7 16 Max in Single Turn 3 | . 2 . . . . 1 2 1 1 1 1 2 . 1 2 1 1 2 1 1 3 Garrison Access 5 | . . . . . . . . . . . . . . . 3 . 1 . . . 1 Garrison Relay 26 | . . . . . . . . 2 . 3 . 5 . 4 . 5 . 3 . 4 . Machines Sabotaged . | . . . . . . . . . . . . . . . . . . . . . . Garrisons Compromised . | . . . . . . . . . . . . . . . . . . . . . . Overloaded Fab Kills . | . . . . . . . . . . . . . . . . . . . . . . Fab Network Shutdowns 1 | . . . . . . . . . 1 . . . . . . . . . . . . Hacking | -11 -10 -10 -10 -9 -8 -8 -8 -8 -7 -7 -7 -7 -6 -6 -6 -6 -5 -5 -5 -5 -4 --------- Run | Scr Mat Min Exi Min Mat Gar Mat Gar Fac Gar Fac Gar Fac Gar Fac Gar Fac Gar Fac Gar Fac Machines Accessed 113 | . 4 . 1 . 8 . 4 . 13 . 20 . 5 . 28 . 5 . 15 . 10 Terminals 56 | . 2 . . . 6 . 3 . 8 . 10 . 1 . 16 . . . 6 . 4 Fabricators 12 | . . . . . . . . . 2 . 4 . . . 3 . . . 2 . 1 Repair Stations 8 | . . . . . 1 . . . . . . . 1 . 2 . 1 . 2 . 1 Recycling Units 16 | . 2 . . . . . . . 1 . 2 . 1 . 3 . 2 . 3 . 2 Scanalyzers 7 | . . . . . . . . . 1 . 3 . 1 . . . . . 1 . 1 Garrison Access 13 | . . . . . 1 . 1 . 1 . 1 . 1 . 4 . 2 . 1 . 1 Total Hacks 274 | . 9 . 1 . 23 . 8 . 44 . 51 . 11 . 63 . 9 . 33 . 22 Successful 174 | . 5 . 1 . 14 . 6 . 24 . 28 . 9 . 46 . 8 . 24 . 9 Failed 100 | . 4 . . . 9 . 2 . 20 . 23 . 2 . 17 . 1 . 9 . 13 Catastrophic 16 | . . . . . . . . . 3 . 4 . . . 2 . . . 2 . 5 Database Lockouts . | . . . . . . . . . . . . . . . . . . . . . . Manual 107 | . 2 . 1 . 14 . 7 . 29 . 12 . 4 . 27 . . . 11 . . Terminals 153 | . 5 . . . 17 . 7 . 29 . 25 . 5 . 42 . . . 13 . 10 Fabricators 43 | . . . . . . . . . 9 . 13 . . . 8 . . . 10 . 3 Repair Stations 18 | . . . . . 4 . . . . . . . 2 . 3 . 4 . 3 . 2 Recycling Units 24 | . 4 . . . . . . . 2 . 3 . 1 . 4 . 3 . 3 . 4 Scanalyzers 19 | . . . . . . . . . 3 . 9 . 2 . . . . . 3 . 2 Garrison Access 16 | . . . . . 2 . 1 . 1 . 1 . 1 . 6 . 2 . 1 . 1 Terminal Hacks 44 | . 1 . 1 . 3 . 1 . 10 . 8 . 2 . 14 . . . 2 . 2 Part Schematic 2 | . . . . . . . . . 1 . . . . . 1 . . . . . . Prototype ID Bank 5 | . . . . . . . . . . . 2 . 1 . 2 . . . . . . Machine Index 2 | . . . . . . . . . 1 . 1 . . . . . . . . . . Terminal Index 2 | . . . . . . . . . . . . . 1 . 1 . . . . . . Fabricator Index 1 | . . . . . . . . . . . . . . . 1 . . . . . . Garrison Index 2 | . . . . . . . . . . . . . . . 1 . . . 1 . . Unreport Threat 10 | . . . . . . . 1 . 5 . 2 . . . 1 . . . . . 1 Locate Traps 6 | . 1 . . . . . . . 1 . 1 . . . 2 . . . 1 . . Recall Extermination 2 | . . . . . . . . . 2 . . . . . . . . . . . . Hauler Manifests 3 | . . . . . 1 . . . . . 1 . . . 1 . . . . . . Zone Layout 8 | . . . . . 2 . . . . . 1 . . . 4 . . . . . 1 EX-Prototype ID Bank 1 | . . . 1 . . . . . . . . . . . . . . . . . . Fabricator Hacks 22 | . . . . . . . . . 2 . 6 . . . 6 . . . 7 . 1 Load Schematic 8 | . . . . . . . . . . . 2 . . . 2 . . . 3 . 1 Build 14 | . . . . . . . . . 2 . 4 . . . 4 . . . 4 . . Repair Station Hacks 13 | . . . . . 2 . . . . . . . 2 . 2 . 4 . 2 . 1 Scan Component 7 | . . . . . 1 . . . . . . . 1 . 1 . 2 . 1 . 1 Repair 6 | . . . . . 1 . . . . . . . 1 . 1 . 2 . 1 . . Recycling Unit Hacks 16 | . 2 . . . . . . . 1 . 2 . 1 . 3 . 2 . 3 . 2 Retrieve Components 16 | . 2 . . . . . . . 1 . 2 . 1 . 3 . 2 . 3 . 2 Scanalyzer 15 | . . . . . . . . . 2 . 6 . 2 . . . . . 3 . 2 Insert Component 7 | . . . . . . . . . 1 . 3 . 1 . . . . . 1 . 1 Analyze 8 | . . . . . . . . . 1 . 3 . 1 . . . . . 2 . 1 Garrison Access Hacks 15 | . . . . . 1 . 1 . 1 . 1 . 1 . 6 . 2 . 1 . 1 Unlock Access 8 | . . . . . 1 . 1 . 1 . 1 . 1 . 1 . 1 . 1 . . Seal Access 5 | . . . . . . . . . . . . . . . 3 . 1 . . . 1 Coupler Status 2 | . . . . . . . . . . . . . . . 2 . . . . . . Unauthorized Hacks 121 | . 4 . . . 21 . 10 . 21 . 14 . 2 . 32 . . . 17 . . Terminals 45 | . 2 . . . 8 . 4 . 6 . 4 . 1 . 14 . . . 6 . . Track 23 | . 1 . . . 5 . 3 . 1 . 3 . . . 7 . . . 3 . . Assimilate 7 | . . . . . . . . . 3 . 1 . 1 . 2 . . . . . . Botnet 10 | . 1 . . . 1 . 1 . 1 . . . . . 4 . . . 2 . . Operators 5 | . . . . . 2 . . . 1 . . . . . 1 . . . 1 . . Fabricators 3 | . . . . . . . . . 2 . 1 . . . . . . . . . . Prioritize 1 | . . . . . . . . . 1 . . . . . . . . . . . . Haulers 2 | . . . . . . . . . 1 . 1 . . . . . . . . . . Repair Stations . | . . . . . . . . . . . . . . . . . . . . . . Recycling Units 1 | . . . . . . . . . . . . . . . 1 . . . . . . Mask 1 | . . . . . . . . . . . . . . . 1 . . . . . . Scanalyzers . | . . . . . . . . . . . . . . . . . . . . . . Garrison Access . | . . . . . . . . . . . . . . . . . . . . . . Data Cores Recovered . | . . . . . . . . . . . . . . . . . . . . . . Used . | . . . . . . . . . . . . . . . . . . . . . . Hacking Detections 85 | . 2 . . . 6 . 2 . 12 . 18 . 3 . 20 . 2 . 12 . 8 Full Trace Events 9 | . . . . . . . . . 2 . 3 . . . 2 . . . 1 . 1 Feedback Events . | . . . . . . . . . . . . . . . . . . . . . . Feedback Blocked . | . . . . . . . . . . . . . . . . . . . . . . Robot Schematics Acquired . | . . . . . . . . . . . . . . . . . . . . . . Robots Built . | . . . . . . . . . . . . . . . . . . . . . . Matter . | . . . . . . . . . . . . . . . . . . . . . . Time . | . . . . . . . . . . . . . . . . . . . . . . Total Robot Build Rating . | . . . . . . . . . . . . . . . . . . . . . . Part Schematics Acquired 5 | . . . . . . . . . 2 . . . 1 . 1 . . . 1 . . Parts Built 20 | . . . . . . . . . 2 . 6 . . . 6 . . . 6 . . Matter 2836 | . . . . . . . . . 424 . 672 . . . 892 . . . 848 . . Time 946 | . . . . . . . . . 159 . 336 . . . 275 . . . 176 . . Total Part Build Rating 114 | . . . . . . . . . 12 . 26 . . . 40 . . . 36 . . Parts Repaired 6 | . . . . . 1 . . . . . . . 1 . 1 . 2 . 1 . . Time 197 | . . . . . 22 . . . . . . . 22 . 25 . 100 . 28 . . Parts Recycled . | . . . . . . . . . . . . . . . . . . . . . . Recycled Matter . | . . . . . . . . . . . . . . . . . . . . . . Retrieved Matter . | . . . . . . . . . . . . . . . . . . . . . . Retrieved Components 75 | . 10 . . . . . . . 2 . 15 . 9 . 14 . 5 . 18 . 2 Parts Scanalyzed 5 | . . . . . . . . . 1 . 1 . 1 . . . . . 1 . 1 Part Schematics Acquired 3 | . . . . . . . . . 1 . . . 1 . . . . . 1 . . Parts Damaged . | . . . . . . . . . . . . . . . . . . . . . . Bothacking | -11 -10 -10 -10 -9 -8 -8 -8 -8 -7 -7 -7 -7 -6 -6 -6 -6 -5 -5 -5 -5 -4 ------------ Run | Scr Mat Min Exi Min Mat Gar Mat Gar Fac Gar Fac Gar Fac Gar Fac Gar Fac Gar Fac Gar Fac Used RIF Installer 8 | . . . . . . 1 . 1 . 1 . 1 . 1 . 1 . 1 . 1 . Coupler Efficiency 1 | . . . . . . . . . . . . . . . . 1 . . . . . Robot Detection 1 | . . . . . . . . . . . . . . 1 . . . . . . . Patrol Navigation 1 | . . . . . . . . . . 1 . . . . . . . . . . . Alert ID Control 1 | . . . . . . . . 1 . . . . . . . . . . . . . Structural Interface 1 | . . . . . . . . . . . . 1 . . . . . . . . . Program Shield 1 | . . . . . . . . . . . . . . . . . . . . 1 . Autoassimilate 1 | . . . . . . . . . . . . . . . . . . 1 . . . Robots Hacked 57 | . . . . . . . . 2 1 3 2 1 8 2 4 5 3 . 9 5 12 Non-combat 26 | . . . . . . . . . 1 . 1 . 8 . 4 . 2 . 7 . 3 Combat 31 | . . . . . . . . 2 . 3 1 1 . 2 . 5 1 . 2 5 9 Autoassimilated 5 | . . . . . . . . . . . . . . . . . . . 2 1 2 Robot Hacks Applied 60 | . . . . . . . . 2 1 3 3 1 11 2 4 5 3 . 9 4 12 parse_system 3 | . . . . . . . . . . . . . . . . . . . 1 . 2 find_chute 3 | . . . . . . . . . 1 . . . 1 . . . 1 . . . . ignore_repairs 2 | . . . . . . . . . . . 2 . . . . . . . . . . drop_inventory 7 | . . . . . . . . . . . . . 4 . . . 1 . 1 . 1 recall_reinforcements 3 | . . . . . . . . . . . . . . . 2 . . . . . 1 find_recycling 1 | . . . . . . . . . . . . . . . . . . . 1 . . purge_threat 5 | . . . . . . . . . . . . . 3 . . . . . 2 . . find_terminals 1 | . . . . . . . . . . . . . . . . . . . 1 . . map_route 6 | . . . . . . . . . . . . . 2 . 2 . . . 1 . 1 mark_security 1 | . . . . . . . . . . . . . 1 . . . . . . . . reboot_system 1 | . . . . . . . . . . . . . . . . . . . . 1 . overwrite_iff 1 | . . . . . . . . . . . . . . . . . . . . . 1 formatsys_high 26 | . . . . . . . . 2 . 3 1 1 . 2 . 5 1 . 2 3 6 Relay Couplers Released 102 | . . . . . . . . 8 . 13 . 17 . 14 . 20 . 9 4 17 . Machine Destruction 98 | . . . . . . . . 8 . 13 . 17 . 14 . 20 . 9 . 17 . Programmers 4 | . . . . . . . . . . . . . . . . . . . 4 . . Attached 30 | . . . . . . . . 1 . 2 1 1 2 2 1 2 2 2 5 4 5 Robots Rewired 14 | . . . . . . . . . 2 1 . 4 . . . 4 . 3 . . . Allies Hacked 2 | . . . . . . . . . 1 . . . . . . . . . 1 . . Hacks Repelled . | . . . . . . . . . . . . . . . . . . . . . . Allies | -11 -10 -10 -10 -9 -8 -8 -8 -8 -7 -7 -7 -7 -6 -6 -6 -6 -5 -5 -5 -5 -4 -------- Run | Scr Mat Min Exi Min Mat Gar Mat Gar Fac Gar Fac Gar Fac Gar Fac Gar Fac Gar Fac Gar Fac Total Allies 56 | . . 2 . . . . . 2 4 4 2 5 1 2 1 9 1 3 7 4 9 Largest Group 4 | . . 2 2 2 2 . . 2 2 2 2 3 1 2 2 4 2 3 3 3 2 Highest-Rated Group 126 | . . 24 24 24 24 . . 32 32 64 64 96 10 51 17 126 58 123 123 87 96 Highest-Rated Ally 60 | . . 16 16 16 16 . . 16 16 32 32 32 10 41 10 38 47 41 60 29 49 Total Orders 68 | . . . . . . . . 2 11 4 2 . 2 5 32 . . 2 4 4 . STAY 7 | . . . . . . . . . 2 1 . . . 2 2 . . . . . . GOTO 37 | . . . . . . . . 2 4 1 2 . 1 1 20 . . 1 2 3 . FOLLOW 23 | . . . . . . . . . 5 2 . . 1 2 10 . . 1 1 1 . GUARD 1 | . . . . . . . . . . . . . . . . . . . 1 . . Ally Attacks 337 | . . 1 . 2 42 . . . 1 12 17 17 . 18 . 35 14 . 102 35 41 Total Damage 7744 | . . 15 . 28 374 . . . 20 351 554 429 . 647 . 788 237 . 2589 567 1145 Kills 61 | . . 1 . 2 4 . . . . 5 4 3 . 4 . 10 1 . 20 4 3 Allies Corrupted 3 | . . . . . . . . . . . 1 . . . . . . . 2 . . Allies Melted . | . . . . . . . . . . . . . . . . . . . . . . Intel | -11 -10 -10 -10 -9 -8 -8 -8 -8 -7 -7 -7 -7 -6 -6 -6 -6 -5 -5 -5 -5 -4 ------- Run | Scr Mat Min Exi Min Mat Gar Mat Gar Fac Gar Fac Gar Fac Gar Fac Gar Fac Gar Fac Gar Fac Robot Analysis Total . | . . . . . . . . . . . . . . . . . . . . . . Derelict Logs Recovered 2 | . . 1 . 1 . . . . . . . . . . . . . . . . . Drone Launches . | . . . . . . . . . . . . . . . . . . . . . . Drone Recoveries . | . . . . . . . . . . . . . . . . . . . . . . Exploration | -11 -10 -10 -10 -9 -8 -8 -8 -8 -7 -7 -7 -7 -6 -6 -6 -6 -5 -5 -5 -5 -4 ------------- Run | Scr Mat Min Exi Min Mat Gar Mat Gar Fac Gar Fac Gar Fac Gar Fac Gar Fac Gar Fac Gar Fac Turns Passed 40048 | 73 511 988 387 181 1248 426 378 1243 2072 1423 2873 2197 1226 1694 4116 3071 2082 2876 4632 3804 2547 Spaces Moved 22427 | 52 326 799 347 142 801 244 225 618 1122 861 1691 1389 731 1129 2459 1630 1165 1236 2446 1844 1170 Core 93 | 5 . . . . . . . . . . . . . . . . . . . . 88 Treads 3545 | . . . . . . . . . 2 . . . . . . 1024 34 905 88 1439 53 Legs 17 | . . . . . . . . 17 . . . . . . . . . . . . . Wheels 18772 | 47 326 799 347 142 801 244 225 601 1120 861 1691 1389 731 1129 2459 606 1131 331 2358 405 1029 Hover . | . . . . . . . . . . . . . . . . . . . . . . Flight . | . . . . . . . . . . . . . . . . . . . . . . Fastest Speed 50 | 50 90 110 110 110 110 120 120 120 120 120 120 120 130 120 120 110 120 120 130 110 50 Average Speed 137 | 90 102 110 110 110 116 121 129 149 131 127 129 124 130 129 132 160 127 185 134 172 130 Slowest Speed 330 | 100 120 110 110 110 140 130 130 330 220 130 170 130 130 130 160 220 200 220 200 200 240 Overloaded Moves . | . . . . . . . . . . . . . . . . . . . . . . Propulsion Burnouts . | . . . . . . . . . . . . . . . . . . . . . . Robots Hopped . | . . . . . . . . . . . . . . . . . . . . . . Cave-ins Triggered 1 | . . . . . . . . 1 . . . . . . . . . . . . . Exploration Rate (%) 56 | 4 65 90 70 34 67 46 26 66 27 69 42 98 19 95 53 95 22 79 45 99 33 Regions Visited 21 Branch Regions 3 Pre-discovered Areas 1 | . . 1 . . . . . . . . . . . . . . . . . . . Known Exits Taken 8 | . . . . . 1 . 1 . 1 . 1 . 1 . 1 . 1 . 1 . . Unknown Exits Taken 5 | 1 1 1 1 1 . . . . . . . . . . . . . . . . . Scrap Searched 3 | . . 1 . 2 . . . . . . . . . . . . . . . . . Spaces Dug 336 | . . 11 . . 8 . . . 34 5 50 . 8 . 42 22 24 . 27 6 99 Terrain Destroyed 1310 | 1 4 30 . 8 21 58 44 9 71 68 83 133 12 23 134 68 45 21 46 21 410 Melee 150 | . . . . . 8 . . . 16 . 38 . 8 . 22 . 17 . 17 3 21 Projectile 121 | . . . . . . . 2 . . 1 4 . . 2 28 3 23 5 29 7 17 AOE 1039 | 1 4 30 . 8 13 58 42 9 55 67 41 133 4 21 84 65 5 16 . 11 372 Actions | -11 -10 -10 -10 -9 -8 -8 -8 -8 -7 -7 -7 -7 -6 -6 -6 -6 -5 -5 -5 -5 -4 --------- Run | Scr Mat Min Exi Min Mat Gar Mat Gar Fac Gar Fac Gar Fac Gar Fac Gar Fac Gar Fac Gar Fac Total 29126 | 69 405 876 353 161 1034 336 277 835 1544 1096 2169 1727 957 1299 3059 1932 1636 1652 3472 2347 1890 Wait 2622 | 1 12 50 2 16 69 36 14 71 192 74 241 116 138 14 234 6 261 60 595 207 213 Move 22410 | 51 325 798 346 141 801 243 225 616 1122 859 1691 1387 731 1128 2459 1628 1165 1235 2446 1843 1170 Hop . | . . . . . . . . . . . . . . . . . . . . . . Pick Up 485 | 6 8 1 2 . 34 4 5 10 19 19 20 28 7 16 30 49 33 55 41 45 53 Fast Attach 118 | 7 1 . . . 10 . 2 4 6 4 3 3 7 3 14 4 4 7 12 8 19 Attach 211 | . . 1 . . 7 2 . 2 11 3 6 6 4 5 10 21 6 21 30 16 60 Detach 100 | . . . . . . . . 1 3 1 1 1 2 4 4 9 2 6 24 15 27 Swap 617 | . 7 3 . 2 16 6 7 16 42 25 58 24 20 14 95 32 46 41 65 30 68 Drop 436 | . 4 . 3 . 25 . 6 12 18 18 24 19 8 10 43 39 25 55 43 46 38 Fire 1583 | 4 48 20 . 2 64 29 18 62 96 68 70 72 32 48 145 112 69 133 192 113 186 Melee 265 | . . . . . 8 . . 9 27 . 55 23 8 1 25 2 21 . 24 6 56 Ram 1 | . . 1 . . . . . . . . . . . . . . . . . . . Kick . | . . . . . . . . . . . . . . . . . . . . . . Crush . | . . . . . . . . . . . . . . . . . . . . . . Escape Stasis 246 | . . . . . . 16 . 32 8 24 . 48 . 56 . 30 . 16 . 16 . Rewire 32 | . . 2 . . . . . . . 1 . . . . . . 4 23 . 2 . Trap . | . . . . . . . . . . . . . . . . . . . . . . Miscellaneous . | . . . . . . . . . . . . . . . . . . . . . . Route ------- -11/Scrapyard -10/Materials (discovered 3 exits: [*Mat x2] / [*Min]) -10/Mines (discovered 3 exits: [*Mat x2] / *Exi) -10/Exiles -9/Mines -8/Materials (discovered 3 exits: *Fac x2 / Gar) -8/Garrison -8/Materials -8/Garrison (discovered 2 exits: *Fac x2) -7/Factory (discovered 2 exits: *Fac / Gar) -7/Garrison (discovered 2 exits: *Fac x2) -7/Factory (discovered 3 exits: *Low x2 / Gar) -7/Garrison (discovered 3 exits: *Fac x3) -6/Factory -6/Garrison (discovered 3 exits: *Fac x3) -6/Factory (discovered 5 exits: *Fac x2 / *Low x2 / Gar) -6/Garrison (discovered 3 exits: *Fac x3) -5/Factory (discovered 2 exits: [*Upp] / Gar) -5/Garrison (discovered 2 exits: *Fac x2) -5/Factory (discovered 4 exits: *Fac / [*Upp x2] / Gar) -5/Garrison (discovered 3 exits: *Fac x3) -4/Factory History --------- Turn | Location | Event 2 | -11/Scrapyard | Met Revision 17 22 | -11/Scrapyard | Discovered new exit (range 14) 74 | -11/Scrapyard | Entered Materials 314 | -10/Materials | Build established: Mutant 340 | -10/Materials | Discovered new exit (range 5) 515 | -10/Materials | Discovered new exit (range 16) 549 | -10/Materials | Discovered new exit (range 16) 585 | -10/Materials | Entered Mines 632 | -10/Mines | Learned 4 Materials zone layouts 745 | -10/Mines | Learned location of Storage (-9) 755 | -10/Mines | Assembled infested the area 910 | -10/Mines | Discovered new exit (range 9) 1106 | -10/Mines | Discovered new exit (range 9) 1149 | -10/Mines | Assisted by bots powering up and referring to "LRC-V3" 1552 | -10/Mines | Discovered new exit (range 3) 1573 | -10/Mines | Entered Exiles 1573 | -10/Exiles | Accompanied by 2 allies 1600 | -10/Exiles | Met 8R-AWN 1620 | -10/Exiles | Met EX-HEX 1666 | -10/Exiles | Met EX-DEC 1774 | -10/Exiles | Met EX-BIN 1796 | -10/Exiles | Aligned with FarCom system 1797 | -10/Exiles | Given EX-Vault access code 1823 | -10/Exiles | Opened EX-Vault 1831 | -10/Exiles | Found Cloak of Protection 1838 | -10/Exiles | Found XL Autogun Array 1863 | -10/Exiles | Warned to stay clear of 0b10 Research branches 1939 | -10/Exiles | Discovered new exit (range 14) 1960 | -10/Exiles | Stole two prototypes: Cloak of Protection, XL Autogun Array 1960 | -10/Exiles | Entered Mines 1960 | -9/Mines | Accompanied by 2 allies 2016 | -9/Mines | Learned Materials emergency access door positions 2126 | -9/Mines | Discovered new exit (range 11) 2141 | -9/Mines | Entered Materials 2141 | -8/Materials | Accompanied by 2 allies 2141 | -8/Materials | Evolved 4 slots: Utility x4 2445 | -8/Materials | Discovered new exit (range 15) 2596 | -8/Materials | Build established: Hauler-Mutant 3074 | -8/Materials | Discovered new exit (range 12) 3332 | -8/Materials | Repaired Weapon Cycler 3389 | -8/Materials | Identified exit to Garrison 3389 | -8/Materials | Entered Garrison 3576 | -8/Garrison | Triggered checkpoint 3780 | -8/Garrison | Discovered new exit (range 15) 3806 | -8/Garrison | Installed Relay Interface Framework 3815 | -8/Garrison | Entered Materials 4193 | -8/Materials | Identified exit to Garrison 4193 | -8/Materials | Entered Garrison 4200 | -8/Garrison | Expanded RIF knowledge: Alert ID Control 4314 | -8/Garrison | Triggered checkpoint 4386 | -8/Garrison | Garrison Relay disabled 4582 | -8/Garrison | Triggered checkpoint 4630 | -8/Garrison | Triggered checkpoint 4646 | -8/Garrison | Triggered checkpoint 4801 | -8/Garrison | Discovered new exit (range 15) 4856 | -8/Garrison | Triggered checkpoint 5003 | -8/Garrison | Triggered checkpoint 5074 | -8/Garrison | Crushed by falling debris 5074 | -8/Garrison | Core integrity fell below 50% 5250 | -8/Garrison | Discovered new exit (range 15) 5315 | -8/Garrison | Garrison Relay disabled 5436 | -8/Garrison | Entered Factory 5436 | -7/Factory | Evolved 2 slots: Utility x2 5438 | -7/Factory | FarCom data flow suspended 6494 | -7/Factory | Fabricated Adv. Hacking Suite (x1) 6550 | -7/Factory | Fabricated Adv. Hacking Suite (x1) 6620 | -7/Factory | Local fabrication network quarantined 6636 | -7/Factory | First assault squad dispatched 6732 | -7/Factory | Discovered new exit (range 3) 6735 | -7/Factory | Identified exit to Factory 7199 | -7/Factory | Lost 4 parts (1n1u2w) 7208 | -7/Factory | Found Prototype Launcher 7209 | -7/Factory | Identified Rocket Array 7507 | -7/Factory | Identified exit to Garrison 7508 | -7/Factory | Entered Garrison 7515 | -7/Garrison | Expanded RIF knowledge: Patrol Navigation 7599 | -7/Garrison | Triggered checkpoint 7629 | -7/Garrison | Garrison Relay disabled 7670 | -7/Garrison | Triggered checkpoint 7889 | -7/Garrison | Triggered checkpoint 7972 | -7/Garrison | Discovered new exit (range 14) 7988 | -7/Garrison | Identified exit to Factory 8020 | -7/Garrison | Triggered checkpoint 8043 | -7/Garrison | Garrison Relay disabled 8142 | -7/Garrison | Triggered checkpoint 8378 | -7/Garrison | Triggered checkpoint 8474 | -7/Garrison | Triggered checkpoint 8549 | -7/Garrison | Discovered exit to Factory (range 11) 8581 | -7/Garrison | Build established: Scavenger-Mutant 8598 | -7/Garrison | Triggered checkpoint 8619 | -7/Garrison | Garrison Relay disabled 8931 | -7/Garrison | Entered Factory 8931 | -7/Factory | Accompanied by 2 allies 9051 | -7/Factory | Discovered new exit (range 8) 9063 | -7/Factory | Identified exit to Lower Caves 9942 | -7/Factory | Discovered exit to Lower Caves (range 9) 10423 | -7/Factory | Fabricated Imp. Core Shielding (x2) 10525 | -7/Factory | Fabricated Imp. Core Shielding? 11012 | -7/Factory | Fabricated Hacking Suite (x1) 11090 | -7/Factory | Fabricated Hacking Suite (x1) 11804 | -7/Factory | Identified exit to Garrison 11804 | -7/Factory | Entered Garrison 11899 | -7/Garrison | Garrison Relay disabled 11952 | -7/Garrison | Triggered checkpoint 11987 | -7/Garrison | Core integrity fell below 50% 12124 | -7/Garrison | Triggered checkpoint 12181 | -7/Garrison | Triggered checkpoint 12247 | -7/Garrison | Triggered checkpoint 12401 | -7/Garrison | Garrison Relay disabled 12404 | -7/Garrison | Triggered checkpoint 12487 | -7/Garrison | Discovered exit to Factory (range 14) 12517 | -7/Garrison | Expanded RIF knowledge: Structural Interface 12608 | -7/Garrison | Triggered checkpoint 12631 | -7/Garrison | Triggered checkpoint 12662 | -7/Garrison | Destroyed 8 combat bots 12732 | -7/Garrison | Discovered exit to Factory (range 12) 12766 | -7/Garrison | Triggered checkpoint 12866 | -7/Garrison | Garrison Relay disabled 13212 | -7/Garrison | Build established: Bothacker-Mutant 13237 | -7/Garrison | Discovered exit to Factory (range 9) 13276 | -7/Garrison | Triggered checkpoint 13314 | -7/Garrison | Garrison Relay disabled 13346 | -7/Garrison | Destroyed 7 combat bots 13366 | -7/Garrison | Triggered checkpoint 13383 | -7/Garrison | Garrison Relay disabled 14001 | -7/Garrison | Entered Factory 14001 | -6/Factory | Evolved 2 slots: Utility x2 14104 | -6/Factory | Repaired Arm. Huge Wheel 14551 | -6/Factory | Build established: Hauler-Mutant 15227 | -6/Factory | Identified exit to Garrison 15227 | -6/Factory | Entered Garrison 15227 | -6/Garrison | Accompanied by 1 ally 15234 | -6/Garrison | Expanded RIF knowledge: Robot Detection 15366 | -6/Garrison | Garrison Relay disabled 15478 | -6/Garrison | Triggered checkpoint 15528 | -6/Garrison | Triggered checkpoint 15691 | -6/Garrison | Garrison Relay disabled 15740 | -6/Garrison | Discovered new exit (range 15) 15763 | -6/Garrison | Identified exit to Factory 15985 | -6/Garrison | Discovered exit to Factory (range 9) 16008 | -6/Garrison | Triggered checkpoint 16046 | -6/Garrison | Garrison Relay disabled 16202 | -6/Garrison | Triggered checkpoint 16316 | -6/Garrison | Discovered exit to Factory (range 14) 16370 | -6/Garrison | Triggered checkpoint 16401 | -6/Garrison | Garrison Relay disabled 16774 | -6/Garrison | Triggered checkpoint 16796 | -6/Garrison | Triggered checkpoint 16921 | -6/Garrison | Entered Factory 16921 | -6/Factory | Accompanied by 1 ally 17234 | -6/Factory | Discovered new exit (range 12) 17320 | -6/Factory | Identified exit to Factory 18692 | -6/Factory | Fabricated Adv. Hacking Suite? 18862 | -6/Factory | Discovered exit to Factory (range 5) 18955 | -6/Factory | Discovered new exit (range 14) 18959 | -6/Factory | Fabricated Adv. Hacking Suite? 19219 | -6/Factory | Build established: Hacker-Mutant 19563 | -6/Factory | Build established: Hauler-Mutant 19851 | -6/Factory | Discovered new exit (range 14) 19909 | -6/Factory | Identified exit to Lower Caves 20326 | -6/Factory | Repaired Hvy. Plasma Cannon 20388 | -6/Factory | Build established: Hacker-Mutant 20591 | -6/Factory | Fabricated Centrium Wheel? 20665 | -6/Factory | Fabricated Centrium Wheel (x2) 21013 | -6/Factory | Build established: Hauler-Mutant 21037 | -6/Factory | Identified exit to Garrison 21037 | -6/Factory | Entered Garrison 21115 | -6/Garrison | Spotted B-75 Beast 21181 | -6/Garrison | Triggered checkpoint 21191 | -6/Garrison | Destroyed B-75 Beast 21274 | -6/Garrison | Triggered checkpoint 21310 | -6/Garrison | Destroyed 7 combat bots 21318 | -6/Garrison | Lost 5 parts (1p4w) 21449 | -6/Garrison | Garrison Relay disabled 21507 | -6/Garrison | Discovered exit to Factory (range 15) 21547 | -6/Garrison | Expanded RIF knowledge: Coupler Efficiency 21707 | -6/Garrison | Discovered exit to Factory (range 15) 21764 | -6/Garrison | Build established: Bothacker-Mutant 21833 | -6/Garrison | Triggered checkpoint 21990 | -6/Garrison | Triggered checkpoint 22053 | -6/Garrison | Discovered exit to Factory (range 11) 22058 | -6/Garrison | Triggered checkpoint 22121 | -6/Garrison | Garrison Relay disabled 22203 | -6/Garrison | Garrison Relay disabled 22258 | -6/Garrison | Triggered checkpoint 22316 | -6/Garrison | Triggered checkpoint 22396 | -6/Garrison | Garrison Relay disabled 22556 | -6/Garrison | Triggered checkpoint 22853 | -6/Garrison | Triggered checkpoint 22890 | -6/Garrison | Garrison Relay disabled 23189 | -6/Garrison | Build established: Botlord-Mutant 23987 | -6/Garrison | Build established: Bothacker-Mutant 24108 | -6/Garrison | Entered Factory 24108 | -5/Factory | Accompanied by 2 allies 24108 | -5/Factory | Evolved 2 slots: Utility x2 24576 | -5/Factory | Repaired Lyr. Medium Armor Plating? 24653 | -5/Factory | Repaired Hvy. Plasma Cannon? 24708 | -5/Factory | First assault squad dispatched 24922 | -5/Factory | Discovered new exit (range 12) 24999 | -5/Factory | Found Tesla Bomb Launcher 25003 | -5/Factory | Found Tesla Bomb Launcher 26190 | -5/Factory | Identified exit to Garrison 26190 | -5/Factory | Entered Garrison 26552 | -5/Garrison | Triggered checkpoint 26670 | -5/Garrison | Lost 10 parts (2p1n5u2w) 26705 | -5/Garrison | Garrison Relay disabled 26918 | -5/Garrison | Build established: Scavenger-Mutant 27022 | -5/Garrison | Triggered checkpoint 27022 | -5/Garrison | Triggered checkpoint 27062 | -5/Garrison | Destroyed 9 combat bots 27329 | -5/Garrison | Triggered checkpoint 27399 | -5/Garrison | Garrison Relay disabled 27518 | -5/Garrison | Discovered new exit (range 14) 27558 | -5/Garrison | Expanded RIF knowledge: Autoassimilate 27745 | -5/Garrison | Discovered new exit (range 15) 27834 | -5/Garrison | Garrison Relay disabled 28392 | -5/Garrison | Build established: Bothacker-Mutant 29025 | -5/Garrison | Build established: Botlord-Mutant 29066 | -5/Garrison | Entered Factory 29066 | -5/Factory | Accompanied by 3 allies 29254 | -5/Factory | Found Launcher Loader 29523 | -5/Factory | Discovered new exit (range 16) 29979 | -5/Factory | P-70 Sage assimilated allied Slayer 6c 30200 | -5/Factory | Core integrity fell below 50% 30818 | -5/Factory | Repaired Hvy. Treads 31041 | -5/Factory | Allied Derelicts emerged from ambush trap array 31167 | -5/Factory | Discovered new exit (range 3) 31656 | -5/Factory | Discovered new exit (range 9) 32666 | -5/Factory | First assault squad dispatched 33442 | -5/Factory | Fabricated Imp. Core Shielding (x2) 33501 | -5/Factory | Fabricated Centrium Wheel? 33545 | -5/Factory | Fabricated Imp. Powered Armor? 33616 | -5/Factory | Fabricated Imp. Powered Armor (x1) 33698 | -5/Factory | Identified exit to Garrison 33698 | -5/Factory | Entered Garrison 33876 | -5/Garrison | Garrison Relay disabled 34116 | -5/Garrison | Spotted B-75 Beast 34152 | -5/Garrison | Destroyed B-75 Beast 34408 | -5/Garrison | Build established: Bothacker-Mutant 34454 | -5/Garrison | Triggered checkpoint 34579 | -5/Garrison | Discovered new exit (range 10) 34607 | -5/Garrison | Expanded RIF knowledge: Program Shield 34798 | -5/Garrison | Triggered checkpoint 34896 | -5/Garrison | Garrison Relay disabled 35050 | -5/Garrison | Triggered checkpoint 35187 | -5/Garrison | Discovered new exit (range 10) 35273 | -5/Garrison | Triggered checkpoint 35327 | -5/Garrison | Garrison Relay disabled 35420 | -5/Garrison | Triggered checkpoint 35497 | -5/Garrison | Triggered checkpoint 35746 | -5/Garrison | Spotted B-75 Beast 35918 | -5/Garrison | Discovered new exit (range 10) 35968 | -5/Garrison | Triggered checkpoint 36024 | -5/Garrison | Garrison Relay disabled 36362 | -5/Garrison | Triggered checkpoint 36854 | -5/Garrison | Build established: Botlord-Mutant 37502 | -5/Garrison | Entered Factory 37502 | -4/Factory | Accompanied by 2 allies 37502 | -4/Factory | Evolved 2 slots: Utility x2 37992 | -4/Factory | Lost 3 parts (2u1w) 38057 | -4/Factory | Garrison activated, responded to threat 38252 | -4/Factory | First assault squad dispatched 38908 | -4/Factory | Lost 3 parts (1u2w) 39273 | -4/Factory | System corruption reached 10% 39350 | -4/Factory | Lost 7 parts (1p1n4u1w) 39382 | -4/Factory | Destroyed 11 combat bots 39571 | -4/Factory | Build established: Bothacker-Mutant 39576 | -4/Factory | Lost 4 parts (1n3u) 39737 | -4/Factory | Core integrity fell below 50% 39759 | -4/Factory | Lost 7 parts (1p2n2u2w) 39775 | -4/Factory | Found Quantum Capacitor 39937 | -4/Factory | Lost 4 parts (1p1n2w) 39973 | -4/Factory | Core integrity fell below 20% 40002 | -4/Factory | Released all parts (9) 40033 | -4/Factory | Lost 12 parts (3n8u1w) 40049 | -4/Factory | Destroyed by G-67 Veteran with Plasma Rifle Last Messages --------------- 40002_ ALERT: Significant disruption in Zone 7H, assault force dispatched. 40002_ Centrium Wheel destroyed. 40002_ Released Relay Coupler [NC]. 40002_ Released Med. Storage Unit. 40002_ Released Hvy. Pick. 40002_ Released Imp. Coolant Injector. 40002_ Released Relay Coupler [Swarmer]. 40002_ Released Adv. Hacking Suite. 40002_ Released Mic. Fission Core. 40002_ Released Lrg. Storage Unit. 40002_ Released Exp. Optical Array. 40016_ Slug penetrates Wall. 40025_ TVE%1CQRP4IQLMMAW 3H,U9K5W#HEMW 40031_ Connecting with Terminal... >>Layout(Zone) Retrieving Zone 6K layout... Downloaded map data. 40037_ Penetrated by Slug. 40042_ System corrupted: Heat flow error (+282). 40046_ Acquired 25 matter. Map ----- +----------------------------------------------------+ | ???????????????????## ! # # # ? | | ???????????????????? *!%% [%[ = ## ! ? | | ?????????????????????# [[ ## =* ##?????? | | ?????????????????????? =* =### # #??????? | | ?????????????????????? ## # # #??????? | | ??????????????????????? ##=! ##??????? | | ??????????????????????? ##[ % #???????? | | ????????????????????????###### # # #????# ## | | ???????????????????# ???????# # # ##????# | | ???????????????????# ???????# ## # #?????#### | | ???????????????????# ??????# #### # #????????? | | ???????????????##### ?????##[#?? ####????????? | | ???????????????? ## ##!#??? ???????????? | | ??????????????? ? ## ##[#####+####????????? | | ??????????????? " ## ##*## #######??? | | ??????????????? " ## ##%## # #### | | ??????????????? ## ##%## ""? # | | ??????????#?? ? ######+#####R## ""? # | | ??????????# ? + %% ## """ # | | | ??????????# " # A !=# # = #### | | ??????????# " # %*=/ """ ## ##??# | | ??????????# " # g =! # """ ## #???# | | ??????????# =# u ! # """ ## #???# | | ??????????##### ## ###### ## ##### | | ??????????????? % % k % #????# ## + | | ???????????????# # @ ############### ##### | | ???????????????# # # % #???# | | ???????????????# ####################"###### | | ???????????????# # ???????# ##???? ## | | ?????????####### ############???? ## | | ???????? # # ##???? /// ## | | ?????? ? # #### #????? /// ## | | ?????? " # #### #????? // ## | | ?????? " # # """" """" #????? ## | | ?????? " + # """" """" #????? ! ## | | ?????? " # # """" """" #????? ## | | ?????? " ### #### + """" """" #?????########### | | ?????? ? #?# #??# # """" """" #???????????????# | | ???????? #?# #??# # """" """" #???????????????? | | ?????????#?# #??# # """" """" #???????????????? | | ???????????# #??# # #???????????????? | | ??????######+#### # #???????????????? | | ??????? # ##########+###???????????????? | | ??????? + #????????#=#?????????????????? | | ??????? # #???????##=#?????????????????? | | ??????? # #???????#"!#?????????????????? | | ??????? # ##########+###???????????????? | | ??????? # # "" % | [#???????????????? | | ??????? # + ""S """ #???????????????? | | ??????? # # "" """ #???????????????? | +----------------------------------------------------+ Best States ------------- Heat Dissipation 67 Coolant Potential 100 Energy Generation 25 Energy Capacity 790 Matter Stores 400 Matter Capacity 550 Sight Range 23 Robot Scan Range 20 Terrain Scan Range 24 Terrain Scan Density 10 Jamming Range 16 Cloak Strength 5 Additional Mass Support 9 EM Shielding 3 Armor Coverage 1650 Resistance: KI 30 Resistance: TH 30 Core Shielding 30 Weapon Cycling 30 Melee Speed Boost 20 Evasion (%) 50 Recoil Reduction 8 Particle Charging 25 Offensive Hacking 42 Defensive Hacking 14 Item Schematics ----------------- Hacking Suite | -7/Factory | Scanalyzed Imp. Core Shielding | -7/Factory | Hacked Adv. Hacking Suite | -6/Factory | Scanalyzed Imp. Powered Armor | -6/Factory | Hacked Centrium Wheel | -5/Factory | Scanalyzed Robot Schematics ------------------ None Fabricated ------------ Adv. Hacking Suite | x1 | -7/Factory | Preloaded Adv. Hacking Suite | x1 | -7/Factory | Preloaded Imp. Core Shielding | x2 | -7/Factory Imp. Core Shielding | x2 | -7/Factory Hacking Suite | x1 | -7/Factory Hacking Suite | x1 | -7/Factory Adv. Hacking Suite | x1 | -6/Factory Adv. Hacking Suite | x1 | -6/Factory Centrium Wheel | x2 | -6/Factory | Preloaded Centrium Wheel | x2 | -6/Factory | Preloaded Imp. Core Shielding | x2 | -5/Factory Centrium Wheel | x2 | -5/Factory Imp. Powered Armor | x1 | -5/Factory Imp. Powered Armor | x1 | -5/Factory Alien Tech Used ----------------- None Achievements -------------- None Challenges ------------ None Game ------ Seed NullGodCloak Manual? 0 Play Time 09:00:54 Cumulative 789.9 hours Start 2019.10.22 @ 22:04:15 End 2019.10.24 @ 23:31:17 Sessions 7 Manual Loads 0 Difficulty Rogue Special Mode None Game No. 295 Rogue 295 Adventurer 0 Explorer 0 Win Type - Total 20 Types 10/1/7/0/0/0/2 Lore% 95 Gallery% 94 Achievement% 79 Wizard Run 0 Options --------- ASCII 0 Keyboard 0 Movement Vi Keybinds 0 Fullscreen 0 Font 12/Crisp Map View 76x50 Tactical HUD 1 Map Filters NONE Filters NONE Steam 1 RUN: c7caa8a0-b444-47e8-80a1-99d6bb8e53f6